[Event "45th FIDE Olympiad 2024"]
[Site "Budapest"]
[Date "2024.09.19"]
[Round "8.5"]
[White "Rapport, Richard"]
[Black "Martirosyan, Haik M."]
[Result "1/2-1/2"]
[ECO "C24"]
[WhiteElo "2715"]
[BlackElo "2667"]
[Annotator "TA"]
[PlyCount "61"]
[EventDate "2024.09.05"]
[EventType "team-tourn"]
[EventCountry "HUN"]
[SourceTitle "playchess.com"]
[Source "ChessBase"]
[SourceQuality "1"]
[WhiteTeam "Hungary"]
[BlackTeam "Armenia"]
[WhiteTeamCountry "HUN"]
[BlackTeamCountry "ARM"]
[TimeControl "40/5400+30:1800+30"]

{[%evp 17,61,35,19,16,20,12,15,14,17,0,0,22,15,22,25,20,16,23,31,0,12,20,26,9,0,1,20,29,35,41,37,29,22,0,35,26,52,52,39,41,27,31,40,0,0,0]} 1. e4 {[%emt 0:03:16]} e5 {[%emt 0:00:30]} 2. Nf3 {[%emt 0:00:12]} Nc6 {[%emt 0:00:06]} 3. Bc4 {[%emt 0:00:42]} Bc5 {[%emt 0:00:12]} 4. O-O {[%emt 0:00:09]} Nf6 {[%emt 0:00:15]} 5. d3 {[%emt 0:00:07]} O-O {[%emt 0:00:27]} 6. Re1 {[%emt 0:00:13]} Ng4 {[%emt 0:03:17]} 7. Rf1 {[%emt 0:00:29]} Nf6 {[%emt 0:01:35][%cal Bg4f6,Bf6d5,Bd5f4][%mdl 32]} 8. h3 {[%emt 0:00:16]} d5 {[%emt 0:00:23]} 9. exd5 {[%emt 0:00:05]} Nxd5 {[%emt 0:00:04]} 10. Re1 {[%emt 0:00:17]} Be6 {[%emt 0:01:43]} 11. c3 {[%emt 0:00:45][%cal Ob1d2]} Bb6 {[%emt 0:02:07]} 12. Bb3 {[%emt 0:00:16]} ({Worse is} 12. Nxe5 Nxe5 13. Rxe5 Bxf2+ 14. Kh1 Bg3 $17) 12... Re8 {[%emt 0:08:01]} 13. Ng5 {[%emt 0:01:40]} Qf6 {[%emt 0:05:21]} 14. Rf1 {[%emt 0:01:30]} Nf4 {[%emt 0:05:56]} 15. Nxe6 {[%emt 0:08:27]} Nxe6 {[%emt 0:00:46]} 16. Nd2 {[%emt 0:06:42]} Rad8 {[%emt 0:08:43]} 17. Ne4 {[%emt 0:01:52]} Qg6 {[%emt 0:01:18]} 18. Qf3 {[%emt 0:06:37]} Kh8 {[%emt 0:02:48]} 19. h4 {[%emt 0:06:41] [#] aiming for h5.} f5 {[%emt 0:02:50]} 20. Ng5 {[%emt 0:00:46]} Nxg5 {[%emt 0:01:24]} 21. Bxg5 {[%emt 0:00:33]} Rd6 {[%emt 0:03:16]} 22. Rae1 {[%emt 0:04:40][%cal Od3d4]} h6 {[%emt 0:03:14]} 23. Bc1 {[%emt 0:03:28]} (23. Bf4 {feels hotter.} exf4 24. h5 Bxf2+ 25. Kxf2 Qg3+ 26. Qxg3 fxg3+ 27. Kxg3 Rxd3+ 28. Kf4) 23... Rf8 {[%emt 0:04:43]} 24. Bc4 {[%emt 0:14:09]} Rdd8 {[%emt 0:06:29][%cal Oe5e4]} 25. Qh3 {[%emt 0:06:09]} a5 {[%emt 0:06:36]} 26. a3 {[%emt 0:03:04][%cal Ba2a3,Ba3b4,Bb4b5][%mdl 32]} f4 {[%emt 0:08:02]} 27. Kh2 {[%emt 0:03:50]} Bc5 {[%emt 0:03:18]} 28. b4 {[%emt 0:00:58]} axb4 {[%emt 0:00:34]} 29. axb4 {[%emt 0:00:09]} Be7 {[%emt 0:01:03]} 30. d4 {[%emt 0:02:40]} exd4 {[%emt 0:03:36][%cal Of4f3] [#] White must now prevent ...f3!} 31. b5 {[%emt 0:06:00] Weighted Error Value: White=0.08 (flawless) /Black=0.05 (flawless) .  Inaccurate:     	White=2     	Black=2      OK:         	White=7     	Black=12     Best:        	White=1     	---} 1/2-1/2

[Event "45th FIDE Olympiad 2024"]
[Site "Budapest"]
[Date "2024.09.19"]
[Round "8.5"]
[White "Muhammed, Shuaau"]
[Black "Kigigha, Bomo Lovet"]
[Result "1/2-1/2"]
[WhiteElo "2052"]
[BlackElo "2217"]
[PlyCount "175"]
[EventDate "2024.09.05"]
[EventType "team-tourn"]
[EventCountry "HUN"]
[WhiteTeam "Maldives"]
[BlackTeam "Nigeria"]
[WhiteTeamCountry "MDV"]
[BlackTeamCountry "NGR"]
[TimeControl "40/5400+30:1800+30"]

1. e4 Nf6 2. e5 Nd5 3. d4 d6 4. exd6 exd6 5. Nf3 Be7 6. Bc4 Nb6 7. Bd3 Bg4 8. h3 Bh5 9. Nbd2 Nc6 10. c3 O-O 11. O-O Nd5 12. Ne4 Nf6 13. Ng3 Bg6 14. Bxg6 hxg6 15. d5 Ne5 16. Re1 Ned7 17. c4 Re8 18. Be3 Bf8 19. b4 c6 20. dxc6 bxc6 21. b5 cxb5 22. cxb5 Qa5 23. a4 a6 24. Rb1 Nc5 25. Nd4 Qxa4 26. Qxa4 Nxa4 27. b6 Nc5 28. Nc6 Nb7 29. Bd4 Nd7 30. Rxe8 Rxe8 31. Ra1 Ra8 32. Ne2 d5 33. Na5 Ndc5 34. Bxc5 Nxc5 35. Rb1 Nd7 36. Nd4 Nxb6 37. Rxb6 Bc5 38. Rb3 Bxd4 39. Rd3 Bb6 40. Rxd5 Bxa5 41. Rxa5 Kf8 42. Kf1 Ke7 43. Ke2 Kd6 44. Kd3 Kc6 45. Kc4 Kb6 46. Re5 a5 47. Kb3 Rc8 48. h4 Rc5 49. Re4 Kc6 50. g4 Kd6 51. f3 Re5 52. Rd4+ Rd5 53. Rf4 Rb5+ 54. Kc3 f5 55. Ra4 Kc6 56. Ra1 Rc5+ 57. Kd4 Kb6 58. Rb1+ Rb5 59. Rg1 fxg4 60. fxg4 a4 61. Kc3 Rb3+ 62. Kc2 Rb4 63. h5 g5 64. Re1 Rxg4 65. Re6+ Kb5 66. Rg6 Kb4 67. Rxg7 Rg2+ 68. Kb1 Kb3 69. Rb7+ Ka3 70. h6 Rg1+ 71. Kc2 Rh1 72. h7 Rh5 73. Rg7 Ka2 74. Kc1 a3 75. Rxg5 Rh1+ 76. Kc2 Rxh7 77. Rc5 Rh2+ 78. Kc1 Ka1 79. Rc8 Rh1+ 80. Kc2 Rb1 81. Rc7 Ka2 82. Rc8 Rb7 83. Kc1 Rb2 84. Rc7 Ka1 85. Rc8 Rg2 86. Rc7 Rg1+ 87. Kc2 a2 88. Rc8 1/2-1/2

[Event "45th FIDE Olympiad 2024"]
[Site "Budapest"]
[Date "2024.09.19"]
[Round "8.6"]
[White "Sargsyan, Shant"]
[Black "Leko, Peter"]
[Result "1/2-1/2"]
[ECO "C65"]
[WhiteElo "2649"]
[BlackElo "2666"]
[Annotator "TA"]
[PlyCount "52"]
[EventDate "2024.09.05"]
[EventType "team-tourn"]
[EventCountry "HUN"]
[SourceTitle "playchess.com"]
[Source "ChessBase"]
[SourceQuality "1"]
[WhiteTeam "Armenia"]
[BlackTeam "Hungary"]
[WhiteTeamCountry "ARM"]
[BlackTeamCountry "HUN"]
[TimeControl "40/5400+30:1800+30"]

{[%evp 9,52,1,20,5,23,0,18,26,20,30,29,32,29,43,19,33,29,12,25,23,36,20,3,19,22,0,21,10,19,8,14,14,0,0,22,18,20,32,28,0,18,0,31,0,20]} 1. e4 {[%emt 0:00:09]} e5 {[%emt 0:03:54]} 2. Nf3 {[%emt 0:01:10]} Nc6 {[%emt 0:00:07]} 3. Bb5 {[%emt 0:00:06]} Nf6 {[%emt 0:00:12]} 4. d3 {[%emt 0:00:08]} Bc5 {[%emt 0:00:09]} 5. c3 {[%emt 0:00:14]} O-O {[%emt 0:00:38]} 6. O-O {[%emt 0:00:22]} d5 {[%emt 0:00:28]} 7. Nbd2 {[%emt 0:00:32]} Re8 {[%emt 0:03:55]} 8. exd5 {[%emt 0:03:48]} a6 {[%emt 0:00:18]} 9. Bxc6 {[%emt 0:01:26]} bxc6 {[%emt 0:02:01]} 10. Nb3 {[%emt 0:00:08]} Qxd5 {[%emt 0:00:26]} 11. c4 {[%emt 0:00:51]} Qd6 {[%emt 0:00:07]} 12. Nxc5 {[%emt 0:00:48]} Qxc5 {[%emt 0:00:09]} 13. h3 {[%emt 0:15:37]} Bf5 {[%emt 0:38:34]} 14. Be3 {[%emt 0:06:53]} Qb4 {[%emt 0:01:44]} 15. Qe2 {[%emt 0:02:13]} Qd6 {[%emt 0:16:08]} 16. Rad1 {[%emt 0:07:12]} c5 {[%emt 0:01:04]} 17. Nh4 {[%emt 0:00:23]} Bg6 {[%emt 0:01:34]} 18. Qd2 {[%emt 0:07:52]} Qc6 {[%emt 0:03:27]} 19. Nxg6 {[%emt 0:02:54]} hxg6 {[%emt 0:01:45]} 20. Qa5 {[%emt 0:00:09]} Nd7 {[%emt 0:00:13]} 21. a3 {[%emt 0:00:44]} Re6 {[%emt 0:03:33]} 22. b4 {[%emt 0:02:57]} Qb6 {[%emt 0:01:41]} 23. Qa4 {[%emt 0:05:21]} (23. Bxc5 $2 Qxa5 24. bxa5 Nxc5 $19) 23... Qc6 {[%emt 0:00:06]} 24. Qa5 {[%emt 0:03:55]} Qb6 {[%emt 0:00:06]} 25. Qa4 {[%emt 0:05:56]} (25. Bxc5 $2 {too greedy.} Qxa5 26. bxa5 Nxc5 $19) 25... Qc6 {[%emt 0:00:18]} 26. Qa5 {[%emt 0:01:00]} Qb6 {[%emt 0:01:54] Weighted Error Value: White=0.09 (flawless) /Black=0.07 (flawless) .  OK:         	White=10    	Black=8} 1/2-1/2

[Event "45th FIDE Olympiad 2024"]
[Site "Budapest"]
[Date "2024.09.19"]
[Round "8.6"]
[White "Osunfuyi, Abimbola"]
[Black "Mohamed, Hassan"]
[Result "1/2-1/2"]
[WhiteElo "2164"]
[BlackElo "1880"]
[PlyCount "123"]
[EventDate "2024.09.05"]
[EventType "team-tourn"]
[EventCountry "HUN"]
[WhiteTeam "Nigeria"]
[BlackTeam "Maldives"]
[WhiteTeamCountry "NGR"]
[BlackTeamCountry "MDV"]
[TimeControl "40/5400+30:1800+30"]

1. Nf3 e6 2. c4 b6 3. g3 Bb7 4. Bg2 Nf6 5. O-O Be7 6. d4 O-O 7. Nc3 d6 8. d5 e5 9. Ne1 c6 10. Nd3 a5 11. Be3 cxd5 12. cxd5 Ng4 13. Bd2 f5 14. Qb3 Nd7 15. Rac1 Ba6 16. Nb5 Bxb5 17. Qxb5 Nc5 18. a3 h5 19. b4 Nb3 20. Rcd1 Nd4 21. Qc4 Nxe2+ 22. Kh1 Nd4 23. h3 Rc8 24. Qa2 Rc2 25. Qb1 Nh6 26. Bxh6 gxh6 27. Nxe5 dxe5 28. Rxd4 exd4 29. Qxc2 axb4 30. axb4 Bxb4 31. Qd1 Bc5 32. Qxh5 Qg5 33. Qe2 Qg6 34. Re1 Rf6 35. Qb5 h5 36. Qd7 d3 37. Re8+ Rf8 38. Re6 Qh7 39. Qb5 Bxf2 40. Qxd3 Qg7 41. d6 Bxg3 42. Bd5 Kh8 43. Qd2 f4 44. Qe2 f3 45. Bxf3 Bf4 46. Bxh5 Qa1+ 47. Kg2 Qa8+ 48. Re4 Bxd6 49. Qb2+ Kh7 50. Bf3 Qd8 51. Rg4 Qf6 52. Qf2 Be7 53. Qe2 Rg8 54. Qe4+ Kh8 55. Be2 Rxg4+ 56. hxg4 Bc5 57. Bf3 Kg7 58. Qb7+ Qe7 59. Qxe7+ Bxe7 60. Be2 Kf6 61. Kf3 Kg5 62. Ke4 1/2-1/2

[Event "45th FIDE Olympiad 2024"]
[Site "Budapest"]
[Date "2024.09.19"]
[Round "8.7"]
[White "Sjugirov, Sanan"]
[Black "Sargissian, Gabriel"]
[Result "1/2-1/2"]
[ECO "C84"]
[WhiteElo "2644"]
[BlackElo "2646"]
[Annotator "RC"]
[PlyCount "75"]
[EventDate "2024.09.05"]
[EventType "team-tourn"]
[EventCountry "HUN"]
[SourceTitle "playchess.com"]
[Source "ChessBase"]
[SourceQuality "1"]
[WhiteTeam "Hungary"]
[BlackTeam "Armenia"]
[WhiteTeamCountry "HUN"]
[BlackTeamCountry "ARM"]
[TimeControl "40/5400+30:1800+30"]

1. e4 {[%emt 0:02:01]} e5 {[%emt 0:00:09]} 2. Nf3 {[%emt 0:00:10]} Nc6 {[%emt 0:00:15]} 3. Bb5 {[%emt 0:00:12]} a6 {[%emt 0:00:21]} 4. Ba4 {[%emt 0:00:07]} Nf6 {[%emt 0:00:12]} 5. O-O {[%emt 0:00:10]} Be7 {[%emt 0:00:41]} 6. d3 {[%emt 0:00:20]} b5 {[%emt 0:00:21]} 7. Bb3 {[%emt 0:00:06]} d6 {[%emt 0:00:12]} 8. a4 {[%emt 0:00:15]} Bd7 {[%emt 0:01:03]} 9. Nc3 {[%emt 0:00:20]} Na5 {[%emt 0:06:45]} 10. Ba2 {[%emt 0:00:18]} b4 {[%emt 0:00:08]} 11. Ne2 {[%emt 0:00:07]} O-O {[%emt 0:03:10]} 12. h3 {[%emt 0:00:53]} c5 {[%emt 0:02:03]} 13. Ng3 {[%emt 0:00:50]} Be6 {[%emt 0:05:15]} 14. Bxe6 {[%emt 0:08:19]} fxe6 {[%emt 0:01:16]} 15. c3 {[%emt 0:00:16]} Nc6 {[%emt 0:23:23]} 16. d4 {[%emt 0:03:26]} cxd4 {[%emt 0:05:14]} 17. cxd4 {[%emt 0:00:08]} exd4 {[%emt 0:00:41]} 18. Nxd4 {[%emt 0:00:24]} Nxd4 {[%emt 0:01:06]} 19. Qxd4 {[%emt 0:00:05]} a5 {[%emt 0:01:50]} 20. Be3 {[%emt 0:09:09]} Qd7 {[%emt 0:03:05]} 21. Rfd1 {[%emt 0:11:07]} Qb7 {[%emt 0:09:52]} 22. Rac1 {[%emt 0:22:26]} Rfc8 {[%emt 0:04:40]} 23. e5 {[%emt 0:15:18]} Rxc1 {[%emt 0:00:44]} 24. Rxc1 {[%emt 0:00:19]} dxe5 {[%emt 0:00:27]} 25. Qxe5 {[%emt 0:00:05]} Qd5 {[%emt 0:00:46]} 26. Qxd5 {[%emt 0:02:45]} Nxd5 {[%emt 0:00:10]} 27. Bd4 {[%emt 0:00:08]} Rd8 {[%emt 0:04:45]} 28. Rc4 {[%emt 0:12:14]} Bf6 {[%emt 0:03:23]} 29. Bxf6 {[%emt 0:02:43]} Nxf6 {[%emt 0:00:55]} 30. Ne4 {[%emt 0:00:47]} Nxe4 {[%emt 0:01:51]} 31. Rxe4 {[%emt 0:00:09]} Rd1+ {[%emt 0:01:17]} 32. Kh2 {[%emt 0:00:03]} Rd2 {[%emt 0:01:02]} 33. Rxe6 {[%emt 0:00:19]} Rxb2 {[%emt 0:00:33]} 34. Re5 {[%emt 0:00:06]} Rxf2 {[%emt 0:00:19]} 35. Rxa5 {[%emt 0:00:03]} Ra2 {[%emt 0:00:07]} 36. Ra6 {[%emt 0:00:24]} b3 {[%emt 0:00:18]} 37. Rb6 {[%emt 0:00:07]} Rxa4 {[%emt 0:00:05]} 38. Rxb3 {[%emt 0:00:02]} 1/2-1/2

[Event "45th FIDE Olympiad 2024"]
[Site "Budapest"]
[Date "2024.09.19"]
[Round "8.7"]
[White "Hussain, Nimal"]
[Black "Ofowino, Toritsemuwa"]
[Result "0-1"]
[WhiteElo "1805"]
[BlackElo "2020"]
[PlyCount "134"]
[EventDate "2024.09.05"]
[EventType "team-tourn"]
[EventCountry "HUN"]
[WhiteTeam "Maldives"]
[BlackTeam "Nigeria"]
[WhiteTeamCountry "MDV"]
[BlackTeamCountry "NGR"]
[TimeControl "40/5400+30:1800+30"]

1. d4 Nf6 2. c4 c6 3. Nc3 d5 4. cxd5 cxd5 5. Bf4 Nc6 6. e3 a6 7. Bd3 Bg4 8. Qb3 Na5 9. Qc2 e6 10. h3 Bh5 11. Nge2 Be7 12. O-O O-O 13. Rfc1 Rc8 14. Bg5 Bg6 15. Bxg6 hxg6 16. Qd3 b5 17. b3 Ba3 18. Rc2 Qc7 19. Bxf6 gxf6 20. Rd2 f5 21. Rad1 Nc6 22. f4 Kg7 23. Rf1 Ne7 24. Nb1 Bd6 25. Rc1 Qb7 26. Rdc2 Rxc2 27. Rxc2 Rh8 28. Nd2 Nc6 29. Rc1 Ba3 30. Rc3 Nb4 31. Qb1 Rc8 32. Rxc8 Qxc8 33. Kf2 Qc7 34. Nf3 Nc2 35. Ne1 Nxe1 36. Kxe1 Qa5+ 37. Kd1 Bb4 38. Qc2 Qd8 39. Nc1 Qb6 40. Nd3 Bd6 41. Ke2 Qa5 42. h4 Qb6 43. Kf3 Qb7 44. g3 Qa8 45. Nc5 a5 46. Nd3 Qb7 47. Qc3 Qa8 48. Ne5 Bxe5 49. fxe5 a4 50. b4 Qh8 51. Qd3 Qh5+ 52. Kg2 Qg4 53. Qxb5 Qd1 54. Qc5 Qe2+ 55. Kh3 Qf1+ 56. Kh2 Qf2+ 57. Kh3 Qg1 58. Qc2 a3 59. Qd2 Qh1+ 60. Qh2 Qb1 61. Qf2 Qxb4 62. Qf4 Qb1 63. Qf2 Qh1+ 64. Qh2 Qe1 65. Qc2 Qxe3 66. Qc5 Qg1 67. g4 fxg4# {0-} 0-1

[Event "45th FIDE Olympiad 2024"]
[Site "Budapest"]
[Date "2024.09.19"]
[Round "8.8"]
[White "Hovhannisyan, Robert"]
[Black "Gledura, Benjamin"]
[Result "0-1"]
[ECO "B53"]
[WhiteElo "2619"]
[BlackElo "2628"]
[Annotator "TA"]
[PlyCount "90"]
[EventDate "2024.09.05"]
[EventType "team-tourn"]
[EventCountry "HUN"]
[SourceTitle "playchess.com"]
[Source "ChessBase"]
[SourceQuality "1"]
[WhiteTeam "Armenia"]
[BlackTeam "Hungary"]
[WhiteTeamCountry "ARM"]
[BlackTeamCountry "HUN"]
[TimeControl "40/5400+30:1800+30"]

{[%evp 12,90,13,10,15,15,8,18,29,22,46,35,51,27,20,25,21,12,27,-7,-5,-4,-8,-37,-9,-24,-22,-38,-18,-2,-21,-37,-27,-53,-14,-28,-17,-28,0,0,0,0,0,-8,-10,-33,-25,-29,-26,-104,-102,-160,-160,-163,-120,-187,-183,-236,-236,-297,-291,-297,-241,-355,-354,-340,-355,-678,-677,-705,-657,-683,-553,-581,-615,-722,-689,-940,-763,-4802,-3403]} 1. e4 {[%emt 0:00:04]} c5 {[%emt 0:01:50]} 2. Nf3 {[%emt 0:00:13]} d6 {[%emt 0:00:18]} 3. d4 {[%emt 0:00:12]} cxd4 {[%emt 0:00:10]} 4. Qxd4 {[%emt 0:00:08]} Nc6 {[%emt 0:00:15]} 5. Bb5 {[%emt 0:00:18]} a6 {[%emt 0:02:08]} 6. Bxc6+ {[%emt 0:00:08] B53: Sicilian: 2...d6: Lines with Qxd4.} bxc6 {[%emt 0:00:06]} 7. O-O {[%emt 0:00:38]} e5 {[%emt 0:07:00]} 8. Qa4 {[%emt 0:00:22]} Qc7 {[%emt 0:01:50]} 9. c4 {[%emt 0:01:11]} Bd7 {[%emt 0:20:30]} 10. Nc3 {[%emt 0:02:50]} Ne7 {[%emt 0:00:50]} 11. Be3 $146 {[%emt 0:09:22]} ({Predecessor:} 11. c5 d5 12. Qc2 f6 13. Ne1 g5 14. Nd3 Be6 15. f3 Ng6 16. Bd2 Be7 17. b4 {0-1 Demchenko,A (2654)-Fedoseev,V (2701) Chess.com Rapid Wk13 Swiss 2022 (2)}) 11... f6 {[%emt 0:06:08]} 12. Qc2 {[%emt 0:04:34]} Be6 {[%emt 0:01:42]} 13. Rfd1 {[%emt 0:06:49]} Bxc4 {[%emt 0:12:52]} 14. Rac1 {[%emt 0:08:53]} Be6 {[%emt 0:01:01]} 15. Nd5 {[%emt 0:02:06]} Qb7 {[%emt 0:00:52]} (15... cxd5 $2 {is the wrong capture.} 16. Qxc7 Rd8 17. exd5 $18) ({Reject} 15... Bxd5 $6 16. exd5 c5 (16... Nxd5 $2 17. Rxd5 Rb8 18. Qa4 $18) 17. b4 $16) 16. Nb6 {[%emt 0:03:19]} Rd8 {[%emt 0:01:57]} 17. Nc4 {[%emt 0:01:16]} Qb4 {[%emt 0:09:11]} 18. b3 {[%emt 0:07:13]} d5 {[%emt 0:07:18]} 19. Bd2 {[%emt 0:17:40]} Qb5 {[%emt 0:01:35]} 20. a4 {[%emt 0:01:32]} Qb8 {[%emt 0:01:21]} 21. Na5 {[%emt 0:01:01]} dxe4 {[%emt 0:02:45]} 22. Qxe4 {[%emt 0:02:49]} Bd5 {[%emt 0:00:13]} 23. Qe2 {[%emt 0:01:44]} Qc8 {[%emt 0:03:17]} 24. Nc4 {[%emt 0:08:22]} Qe6 {[%emt 0:02:49]} 25. Ba5 {[%emt 0:03:26]} Rd7 {[%emt 0:00:13]} 26. Nb6 {[%emt 0:01:00]} Ra7 {[%emt 0:00:08]} 27. Nxd5 {[%emt 0:01:51]} cxd5 {[%emt 0:00:40]} 28. Nd4 {[%emt 0:03:52]} Qd6 {[%emt 0:02:01]} 29. Nc2 $1 {[%emt 0:00:13]} Kf7 {[%emt 0:00:25]} 30. Ne3 {[%emt 0:03:06]} (30. Bb4 $11 Qe6 31. Bc5) 30... Qe6 $17 {[%emt 0:00:50]} 31. Bb4 {[%emt 0:07:47]} ({White should try} 31. Nc2) 31... d4 {[%emt 0:00:41]} 32. Nc4 {[%emt 0:00:15]} Nd5 {[%emt 0:01:20]} 33. Bxf8 {[%emt 0:01:15]} (33. Bd2 $17 {is a better defense.}) 33... Rxf8 $19 {[%emt 0:00:19]} 34. g3 {[%emt 0:00:07]} (34. Qd3 {keeps fighting.}) 34... Nc3 $19 {[%emt 0:02:30]} 35. Qh5+ {[%emt 0:00:25]} Kg8 {[%emt 0:00:07]} 36. Re1 {[%emt 0:01:01]} e4 {[%emt 0:01:52]} 37. a5 {[%emt 0:01:19]} (37. Qc5 $142 Rd7 38. f3) 37... f5 $19 {[%emt 0:00:25]} 38. Qg5 {[%emt 0:00:19]} f4 {[%emt 0:03:12]} 39. gxf4 $2 {[%emt 0:00:28]} (39. Qe5 Qxe5 40. Nxe5) 39... Raf7 $19 {[%emt 0:01:00]} 40. Kh1 {[%emt 0:00:41]} Rxf4 {[%emt 0:00:27]} 41. Rg1 {[%emt 0:04:22]} Qf6 {[%emt 0:00:34]} ({Worse is} 41... Rxf2 42. Qxg7#) 42. Qxf6 {[%emt 0:10:37]} R4xf6 {[%emt 0:01:07]} 43. Rg4 {[%emt 0:01:03]} Rxf2 {[%emt 0:00:15]} 44. Rcg1 {[%emt 0:00:30]} g6 {[%emt 0:00:30]} 45. Nd6 {[%emt 0:00:30]} e3 {[%emt 0:00:30]} 0-1

[Event "45th FIDE Olympiad 2024"]
[Site "Budapest"]
[Date "2024.09.19"]
[Round "8.8"]
[White "Quickpen, Deborah Ebimobo-Ere"]
[Black "Abdul Rahman, Ali"]
[Result "1-0"]
[WhiteElo "1918"]
[BlackElo "1844"]
[PlyCount "97"]
[EventDate "2024.09.05"]
[EventType "team-tourn"]
[EventCountry "HUN"]
[WhiteTeam "Nigeria"]
[BlackTeam "Maldives"]
[WhiteTeamCountry "NGR"]
[BlackTeamCountry "MDV"]
[TimeControl "40/5400+30:1800+30"]

1. c4 e6 2. g3 Nf6 3. Bg2 d5 4. Nf3 Bd6 5. O-O O-O 6. d4 c6 7. Nc3 Nbd7 8. Qc2 Re8 9. Rd1 Bb4 10. Nd2 Nf8 11. e4 dxe4 12. Ndxe4 Nxe4 13. Nxe4 f5 14. Ng5 Be7 15. Nf3 Bf6 16. Be3 Qc7 17. Bf4 Qe7 18. c5 Ng6 19. Bd6 Qd8 20. h4 Ne7 21. b4 Nd5 22. Rab1 Bd7 23. a4 Qc8 24. Be5 Be7 25. Nd2 b5 26. axb5 cxb5 27. Bxd5 exd5 28. Nb3 f4 29. Qa2 f3 30. Nd2 Rf8 31. Rb3 Bg4 32. Ra3 Qe6 33. Ra6 Qd7 34. Bd6 Be6 35. Bxe7 Qxe7 36. Re1 Rf6 37. Nxf3 Rxf3 38. Raxe6 Qf7 39. Re7 Qf8 40. Qxd5+ Kh8 41. Qxa8 Qxa8 42. Re8+ Rf8 43. Rxa8 Rxa8 44. c6 Kg8 45. d5 Rc8 46. Re7 a6 47. c7 Kf8 48. d6 a5 49. d7 1-0